{"text_format":"1","workbook":"xlsx","n_sheets":12,"sheets":["1 - Terrain et pollutions","2 - Variantes assainissement","3 - Pilier économique","4 - Pilier environnemental","5 - Pilier social","RestrictionsOnUsage","6 - Bilans","Localization","EnvironmentType","PollutionMatrixType","PollutionType","PollutantType"],"not_rendered":{"charts":6,"images":4,"macros":1,"external_links":0,"defined_names":6,"comments":5,"pivot_tables":0},"unopened":[],"bounds":{"document_bytes":16777216,"sheet_cells":100000,"rows_first":2000,"rows_last":500,"rows_between":2000,"halvings":0,"cell_chars":16384,"cell_head_chars":4096},"cells_cut":0,"cells_raw":0,"read":"whole","date_system":"1900"}

{"sheet":"1 - Terrain et pollutions","index":0,"n_rows":43,"n_cols":5,"rows_kept":43,"cut":false,"hidden":false,"merged":[[3,2,3,3],[5,2,5,4],[13,2,13,3],[21,2,21,3],[29,5,31,5]]}
[]
[]
[]
[null,null,"GAMMA - Grille d'Analyse Multicritère pour les Méthodes d'Assainissement"]
[]
[null,null,"1 - Terrain et pollutions"]
[]
[null,null,"a - Dossier",null,"Justifications/remarques"]
[]
[null,null,"Nom du terrain"]
[]
["?",null,"N° GESOL"]
[]
[null,null,"b - Terrain"]
[]
["?",null,"Type d'occupation de la zone"]
[]
["?",null,"Zone de patrimoine"]
[]
["?",null,"Zone nature"]
[]
[null,null,"c - Pollutions concernées par cet outil GAMMA"]
[]
["?",null,"Charge polluante initiale (kg)"]
[]
["?",null,"Charge polluante actuelle (kg)"]
[]
["?",null,"Nom(s) de la/des pollution(s) concernée(s) par cet outil"]
[]
[null,null,"Matrice polluée"]
[]
[null,null,"Types de pollutions"]
[]
[null,null,"Types de polluants"]
[]
[]
[]
[]
[]
[]
[]
[]
["?",null,"Description"]

{"sheet":"2 - Variantes assainissement","index":1,"n_rows":49,"n_cols":4,"rows_kept":49,"cut":false,"hidden":false,"merged":[[26,2,26,3],[34,2,34,3],[42,2,42,3],[10,2,10,3],[3,2,3,3],[5,2,5,3],[18,2,18,3]]}
[]
[]
[]
[null,null,"GAMMA - Grille d'Analyse Multicritère pour les Méthodes d'Assainissement"]
[]
[null,null,"2 - Variantes d'assainissement"]
[]
[null,null,null,"Exceptionnellement, dans le cas où il serait impossible de définir trois variantes pertinentes, une à deux variantes pertinentes seulement peuvent être décrites par l’expert, et ce sur base d’une justification étayée.  Dans l’ensemble, le nombre de variantes proposées doit refléter les possibilités d’assainissement sur le terrain considéré et être en lien avec les techniques jugées applicables par l’expert. L’outil GAMMA est à utiliser à partir de deux variantes."]
[]
[]
[null,null,"Variante 1"]
[]
[null,null,"Nom"]
[]
[null,null,"Description"]
[]
[null,null,"Pollution résiduelle prévue"]
[]
[null,null,"Variante 2"]
[]
[null,null,"Nom"]
[]
[null,null,"Description"]
[]
[null,null,"Pollution résiduelle prévue"]
[]
[null,null,"Variante 3"]
[]
[null,null,"Nom"]
[]
[null,null,"Description"]
[]
[null,null,"Pollution résiduelle prévue"]
[]
[null,null,"Variante 4"]
[]
[null,null,"Nom"]
[]
[null,null,"Description"]
[]
[null,null,"Pollution résiduelle prévue"]
[]
[null,null,"Variante 5"]
[]
[null,null,"Nom"]
[]
[null,null,"Description"]
[]
[null,null,"Pollution résiduelle prévue"]

{"sheet":"3 - Pilier économique","index":2,"n_rows":30,"n_cols":13,"rows_kept":30,"cut":false,"hidden":false,"merged":[[3,2,3,11],[5,2,5,11]]}
[]
[]
[]
[null,null,"GAMMA - Grille d'Analyse Multicritère pour les Méthodes d'Assainissement"]
[]
[null,null,"3 - Pilier économique - \"Au plus le score est élevé, au plus le pilier économique est bon\""]
[]
[null,null,null,"Variante 1","Justifications/remarques","Variante 2","Justifications/remarques","Variante 3","Justifications/remarques","Variante 4","Justifications/remarques"," Variante 5","Justifications/remarques"]
[]
["?",null,"Coûts assainissement (€)"]
[]
["?",null,"Volume de pollutions résiduelles du sol prévu entre 0 et 1 m-ns sur le terrain source (m³)"]
[]
["?",null,"Volume de pollutions résiduelles du sol prévu entre 1 et 3 m-ns sur le terrain source (m³)"]
[]
["?",null,"Volume de pollutions résiduelles du sol prévu entre 0 et 3 m-ns hors du terrain source (m³)"]
[]
["?",null,"Pollution résiduelle de l'eau souterraine susceptible d'impliquer un pompage et un traitement en cas d'excavations jusque 3 m-ns"]
[]
[]
["?",null,"Coûts liés à l’assainissement (k€)"]
[]
["?",null,"Coûts liés aux pollutions résiduelles (k€)"]
[]
[]
["?",null,"Coûts totaux (k€)"]
[]
["?",null,"Score économique total (1/€)"]
[]
[null,null,null,{"$f":"D28","v":0},{"$f":"F28","v":0},{"$f":"H28","v":0},{"$f":"J28","v":0},{"$f":"L28","v":0}]

{"sheet":"4 - Pilier environnemental","index":3,"n_rows":47,"n_cols":13,"rows_kept":47,"cut":false,"hidden":false,"merged":[[34,2,34,11],[8,2,8,11],[5,2,5,12],[3,2,3,12],[20,2,20,11],[22,2,22,11],[28,2,28,11]]}
[]
[]
[]
[null,null,"GAMMA - Grille d'Analyse Multicritère pour les Méthodes d'Assainissement"]
[]
[null,null,"4 - Pilier environnemental - \"Au plus le score est élevé, au plus le pilier environnemental est bon\""]
[]
[null,null,null,"Variante 1","Justifications/remarques","Variante 2","Justifications/remarques","Variante 3","Justifications/remarques","Variante 4","Justifications/remarques","Variante 5","Justifications/remarques"]
[null,null,"a - Local"]
[]
["?",null,"Charge polluante initiale (kg)"]
[]
["?",null,"Charge polluante actuelle (kg)"]
[]
["?",null,"Charge polluante éliminée (kg)"]
[]
["?",null,"Impact négatif des travaux sur la biodiversité"]
[]
["?",null,"Augmentation de l'imperméabilisation du sol"]
[]
[null,null,"b - Global"]
[]
[null,null,"Eau"]
[]
["?",null,"Quantité d'eau consommée"]
[]
["?",null,"Rejet d'eau à l'égout"]
[]
[null,null,"Déchets"]
[]
["?",null,"Production de déchets (autres que terres)"]
[]
["?",null,"Quantité de terres évacuées en CET"]
[]
[null,null,"Energie"]
[]
["?",null,"Consommation d'énergie"]
[]
[]
["?",null,"Score environnemental lié à la charge polluante éliminée"]
[]
["?",null,"Score environnemental lié aux autres critères"]
[]
[]
["?",null,"Score environnemental total"]
[]
[null,null,null,{"$f":"D45","v":0},{"$f":"F45","v":0},{"$f":"H45","v":0},{"$f":"J45","v":0},{"$f":"L45","v":0}]

{"sheet":"5 - Pilier social","index":4,"n_rows":61,"n_cols":14,"rows_kept":61,"cut":false,"hidden":false,"merged":[[32,2,32,11],[26,2,26,11],[3,2,3,12],[8,2,8,11],[14,2,14,11],[5,2,5,12]]}
[]
[]
[]
[null,null,"GAMMA - Grille d'Analyse Multicritère pour les Méthodes d'Assainissement"]
[]
[null,null,"5 - Pilier social - \"Au plus le score est élevé, au plus le pilier social est bon\""]
[]
[null,null,null,"Variante 1","Justifications/\nremarques","Variante 2","Justifications/\nremarques","Variante 3","Justifications/\nremarques","Variante 4","Justifications/\nremarques","Variante 5","Justifications/\nremarques"]
[null,null,"a - Chantier"]
[]
["?",null,"Nuisances liées au chantier"]
[]
["?",null,"Restriction de la circulation"]
[]
[null,null,"b - Charroi"]
[]
["?",null,"Volume de terres à évacuer (m³)",null,null,null,null,null,null,null,null,null,null," "]
[]
["?",null,"Volume de matériaux d'apport extérieur (m³)"]
[]
["?",null,"Mêmes camions pour évacuation et apport terres/matériaux"]
[]
["?",null,"Nombre total de camions à prévoir"]
[]
["?",null,"Charroi"]
[]
[null,null,"c - Paysage et patrimoine"]
[]
["?",null,"Impact paysager négatif après travaux"]
[]
["?",null,"Impact négatif sur le patrimoine pendant et après travaux"]
[]
[null,null,"d - Pollutions résiduelles et restrictions"]
[]
["?",null,"Restrictions d'utilisation"]
[]
[]
[]
[]
[]
[]
[]
[]
[]
[]
[]
["?",null,"Ajustement manuel du score des restrictions d'utilisation"]
[]
["?",null,"Score des restrictions d'utilisation"]
[]
["?",null,"Pollution résiduelle prévue hors terrain"]
[]
[]
["?",null,"Score social lié au charroi"]
[]
["?",null,"Score social lié aux autres critères"]
[]
[]
["?",null,"Score social total"]
[]
[null,null,null,{"$f":"D59","v":0},{"$f":"F59","v":0},{"$f":"H59","v":0},{"$f":"J59","v":0},{"$f":"L59","v":0}]

{"sheet":"RestrictionsOnUsage","index":5,"n_rows":12,"n_cols":6,"rows_kept":12,"cut":false,"hidden":true,"merged":[]}
["Description","Weight"]
["Pas de restriction d'utilisation",0]
["Remaniement des terres polluées sous la supervision d'un expert",0.25]
["Interdiction de jardin potager",0.75,null,null,null,{"$f":"MATCH(\"Pas de restriction d'utilisation\",A:A,0)","v":2}]
["Maintien d'un revêtement en bon état type couche de terres saines",0.75]
["Interdiction de construction d'un bâtiment avec cave",0.75]
["Interdiction de construction d'un bâtiment avec cave ou vide-ventilé",1]
["Interdiction de captage à des fins alimentaires dans une nappe exploitable",2]
["Maintien de la configuration du bâti actuel",2]
["Maintien d'un revêtement en bon état type dalle de béton/revêtement induré",2.5]
["Interdiction de construction d'un bâtiment",2.5]
["Maintien de la configuration et de l'activité actuelles",4]

{"sheet":"6 - Bilans","index":6,"n_rows":70,"n_cols":8,"rows_kept":70,"cut":false,"hidden":false,"merged":[[67,2,67,7],[3,2,3,7],[5,2,5,3],[9,2,9,7],[38,2,38,7]]}
[]
[]
[]
[null,null,"GAMMA - Grille d'Analyse Multicritère pour les Méthodes d'Assainissement"]
[]
[null,null,"6 - Bilans"]
[]
[null,null,null,"Variante 1","Variante 2","Variante 3","Variante 4","Variante 5"]
[]
[null,null,"a - Pilier économique"]
[]
["?",null,"Bilan relatif au rendement = Bilan économique",{"$f":"('4 - Pilier environnemental'!D40/'3 - Pilier économique'!D21)*1000","v":{"$error":"#DIV/0!"}},{"$f":"('4 - Pilier environnemental'!F40/'3 - Pilier économique'!F21)*1000","v":{"$error":"#DIV/0!"}},{"$f":"('4 - Pilier environnemental'!H40/'3 - Pilier économique'!H21)*1000","v":{"$error":"#DIV/0!"}},{"$f":"('4 - Pilier environnemental'!J40/'3 - Pilier économique'!J21)*1000","v":{"$error":"#DIV/0!"}},{"$f":"('4 - Pilier environnemental'!L40/'3 - Pilier économique'!L21)*1000","v":{"$error":"#DIV/0!"}}]
[]
[]
[]
[]
[]
[]
[]
[]
[]
[]
[]
[]
[]
[]
[]
[]
[]
[]
[]
[]
[]
[]
[]
[]
[]
[]
[null,null,"b - Piliers économique et environnemental"]
[]
["?",null,"Bilan économique et environnemental",{"$f":"('4 - Pilier environnemental'!D45/'3 - Pilier économique'!D26)*1000","v":{"$error":"#DIV/0!"}},{"$f":"('4 - Pilier environnemental'!F45/'3 - Pilier économique'!F26)*1000","v":{"$error":"#DIV/0!"}},{"$f":"('4 - Pilier environnemental'!H45/'3 - Pilier économique'!H26)*1000","v":{"$error":"#DIV/0!"}},{"$f":"('4 - Pilier environnemental'!J45/'3 - Pilier économique'!J26)*1000","v":{"$error":"#DIV/0!"}},{"$f":"('4 - Pilier environnemental'!L45/'3 - Pilier économique'!L26)*1000","v":{"$error":"#DIV/0!"}}]
[]
[]
[]
[]
[]
[]
[]
[]
[]
[]
[]
[]
[]
[]
[]
[]
[]
[]
[]
[]
[]
[]
[]
[]
[]
[]
[null,null,"c - Piliers économique, environnemental et social"]
[]
["?",null,"Score de durabilité = Bilan économique, environnemental et social",{"$f":"(('4 - Pilier environnemental'!D45 +'5 - Pilier social'!D59)/'3 - Pilier économique'!D26)*1000","v":{"$error":"#DIV/0!"}},{"$f":"(('4 - Pilier environnemental'!F45 +'5 - Pilier social'!F59)/'3 - Pilier économique'!F26)*1000","v":{"$error":"#DIV/0!"}},{"$f":"(('4 - Pilier environnemental'!H45 +'5 - Pilier social'!H59)/'3 - Pilier économique'!H26)*1000","v":{"$error":"#DIV/0!"}},{"$f":"(('4 - Pilier environnemental'!J45 +'5 - Pilier social'!J59)/'3 - Pilier économique'!J26)*1000","v":{"$error":"#DIV/0!"}},{"$f":"(('4 - Pilier environnemental'!L45 +'5 - Pilier social'!L59)/'3 - Pilier économique'!L26)*1000","v":{"$error":"#DIV/0!"}}]

{"sheet":"Localization","index":7,"n_rows":6,"n_cols":2,"rows_kept":6,"cut":false,"hidden":true,"merged":[]}
["EXPORT_PDF_INVALID","Un export PDF ne peut être créé étant donné que tous les champs obligatoires ne sont pas remplis."]
["RESULTS_INVALID","Les résultats seront provisoires étant donné que tous les champs obligatoires ne sont pas remplis."]
["RESET_WARNING","Cette fonction effacera toutes les données encodées dans l'outil. Cliquez sur OK pour continuer."]
["ASK_SAVE_CHANGES","Voulez-vous sauver avant de continuer ? Si vous cliquez sur \"non\", les modifications appliquées à ce formulaire sertont perdues"]
["NO_VARIATIONS_DEFINED","Veuillez définir au moins deux variantes (noms et descriptions) pour accéder aux formulaires suivants"]
["NO_APPLICATION","Pas d'application"]

{"sheet":"EnvironmentType","index":8,"n_rows":5,"n_cols":3,"rows_kept":5,"cut":false,"hidden":true,"merged":[]}
["Description","NuisancesRequired?","JustificationRequired"]
["Zone avec max. 500 habitants dans un rayon de 500 m",false,false]
["Zone avec min. 501 habitants dans un rayon de 500 m",true,false]
["Cas particulier ne tenant pas compte du critère \"Nuisances liées au chantier\" du pilier social",false,true]
["Cas particulier tenant compte du critère \"Nuisances liées au chantier\" du pilier social",true,true]

{"sheet":"PollutionMatrixType","index":9,"n_rows":4,"n_cols":1,"rows_kept":4,"cut":false,"hidden":true,"merged":[]}
["Description"]
["Sol"]
["Eau"]
["Sol & eau"]

{"sheet":"PollutionType","index":10,"n_rows":3,"n_cols":1,"rows_kept":3,"cut":false,"hidden":true,"merged":[]}
["Description"]
["Pollutions uniquement historiques (ou uniquement \"mixtes majoritairement historiques\")"]
["Au moins une pollution nouvelle (ou au moins une \"mixte majoritairement nouvelle\")"]

{"sheet":"PollutantType","index":11,"n_rows":9,"n_cols":1,"rows_kept":9,"cut":false,"hidden":true,"merged":[]}
["Description"]
["Métaux/métalloïdes"]
["Hydrocarbures aromatiques non halogénés"]
["Hydrocarbures aromatiques polycycliques non halogénés"]
["Hydrocarbures chlorés"]
["Cyanures"]
["MTBE"]
["Hydrocarbures pétroliers"]
["Polluants non normés (PNN)"]